Cogmind - Beta 14 @@@ ROGUE MODE // 2024.08.28 @ 21:50:12 Player: Evel Wyn Result: Destroyed by as-22487 with Assembled Heavy Rifle Performance ------------- Evolutions (0) 0 Regions Visited (4) 800 Robots Destroyed (24) 120 Value Destroyed (740) 740 Prototype IDs (23) 460 Alien Tech Used (0) 0 Bonus (335) 335 TOTAL SCORE: 2455 Bonus ------- Follower Combat Kills 35 Aligned with FarCom 300 Cogmind --------- Core Integrity 0/250 Matter 300/300 Energy 88/100 System Corruption 0% Temperature Cool (8) Movement Walking (120) Location -9/Mines Parts ------- > --- POWER (1) -------- (None) > --- PROPULSION (2) --- Aluminum Leg > --- UTILITY (2) ------ Improved Heat Sink Hacking Suite > --- WEAPON (2) ------- Particle Gun Particle Gun > --- INVENTORY (5) ---- Ion Engine Aluminum Leg Heat Sink Power Shielding Latent Energy Streamer Peak State ------------ > --- POWER ------------ Light Nuclear Core > --- PROPULSION ------- Aluminum Leg Aluminum Leg > --- UTILITY ---------- Improved Heat Sink Hacking Suite > --- WEAPON ----------- Particle Gun Latent Energy Streamer > --- INVENTORY -------- Ion Engine Aluminum Leg Heat Sink Heavy EM Pulse Gun Particle Gun [Rating: 23] Favorites ----------- Power Light Nuclear Core Engine Light Ion Engine Power Core Light Nuclear Core Propulsion Aluminum Leg Treads Light Treads Leg Aluminum Leg Utility Hacking Suite Device Improved Heat Sink Hackware Hacking Suite Protection Power Shielding Weapon Particle Gun Energy Gun Particle Gun Energy Cannon Latent Energy Streamer Ballistic Gun Assault Rifle Build | -11 -10 -10 -10 -9 ------- Run | Yrd Mat Min Exi Min Slots Evolved . | . . . . . Power . | . . . . . Propulsion . | . . . . . Utility . | . . . . . Weapon . | . . . . . Parts Attached 25 | 5 9 8 2 1 Power 5 | 1 2 2 . . Engine 4 | 1 2 1 . . Core 1 | . . 1 . . Reactor . | . . . . . Propulsion 6 | 2 2 2 . . Treads 2 | 2 . . . . Leg 4 | . 2 2 . . Wheel . | . . . . . Hover . | . . . . . Flight . | . . . . . Utility 6 | . 3 2 1 . Device 3 | . 1 1 1 . Storage . | . . . . . Processor . | . . . . . Hackware 1 | . 1 . . . Protection 2 | . 1 1 . . Artifact . | . . . . . Weapon 8 | 2 2 2 1 1 Energy Gun 6 | 1 2 2 . 1 Energy Cannon 1 | . . . 1 . Ballistic Gun 1 | 1 . . . . Ballistic Cannon . | . . . . . Launcher . | . . . . . Special Weapon . | . . . . . Impact Weapon . | . . . . . Slashing Weapon . | . . . . . Piercing Weapon . | . . . . . Special Melee Weapon . | . . . . . Unidentified Prototypes . | . . . . . Parts Lost 3 | . 1 . . 2 Power 1 | . . . . 1 Propulsion 1 | . . . . 1 Utility . | . . . . . Weapon 1 | . 1 . . . Highest Loss Streak 2 | . 1 . . 2 To Critical Strikes . | . . . . . Average Slot Usage (%) 98 | . 94 99 100 100 Engine 5 | . 14 4 . . Core 8 | . . 10 14 14 Treads 3 | . 12 . . . Leg 24 | . 15 28 28 28 Device 3 | . 5 1 5 14 Hackware 13 | . 12 14 14 14 Protection 8 | . 4 12 8 . Energy Gun 24 | . 23 28 22 15 Energy Cannon 2 | . . . 5 12 Peak Build Rating 23 | 5 12 13 23 23 Average Rating 13 | 4 10 12 16 22 On Entrance 10 | . 5 9 13 23 Naked Turns . | . . . . . Heaviest Build 19 | 7 10 12 19 19 Greatest Support 40 | 40 40 20 20 20 Greatest Overweight (x) . | . . . . . Average Overweight (x) . | . . . . . Largest Inventory Capacity 5 | 5 5 5 5 5 Average Capacity 5 | 5 5 5 5 5 Most Carried 5 | 4 5 5 5 5 Average Carried 4 | 2 4 4 4 5 Final Capacity 5 | 5 5 5 5 5 Final Carried 5 | 4 4 5 5 5 Class Distribution -------------------- 55% | Scavenger-Mutant 44% | Mutant Dominant Class ---------------- Mutant | -10/Materials Scavenger-Mutant | -10/Mines Scavenger-Mutant | -10/Exiles Scavenger-Mutant | -9/Mines Resources | -11 -10 -10 -10 -9 ----------- Run | Yrd Mat Min Exi Min Matter Collected 444 | 208 121 95 . 20 Remotely . | . . . . . Salvage Created 938 | . 370 568 . . Parts 47 | . 24 23 . . Haulers Intercepted . | . . . . . Recyclers Shooed . | . . . . . Parts Field Recycled . | . . . . . Retrieved Matter . | . . . . . Parts Self-Destructed . | . . . . . Prevented . | . . . . . Kills | -11 -10 -10 -10 -9 ------- Run | Yrd Mat Min Exi Min Combat Hostiles Destroyed 22 | . 8 14 . . Guns 21 | . 7 14 . . AOE 1 | . 1 . . . Classes Destroyed 6 | . 5 1 . . Recycler 1 | . 1 . . . Operator 1 | . 1 . . . Watcher 2 | . 2 . . . Swarmer 3 | . 3 . . . Grunt 17 | . 5 12 . . Assembled 2 | . . 2 . . Best Kill Streak 5 | . 5 3 . . Combat Bots Only 4 | . 4 3 . . Max Kills in Single Turn 1 | . 1 1 . . Gunslinging . | . . . . . Exploded 1 | . 1 . . . Melee . | . . . . . Uniques/NPCs Destroyed . | . . . . . Combat | -11 -10 -10 -10 -9 -------- Run | Yrd Mat Min Exi Min Hostile Shots Fired 98 | . 46 27 . 25 Missed 29 | . 11 10 . 8 Damage Taken 910 | . 413 265 . 232 Core 255 | . 91 112 . 52 Absorbed by Shields . | . . . . . Redirected to Shielding 6 | . 6 . . . Core Remaining (%) 100 | 100 . . . . Volleys Fired 63 | . 25 31 . 7 Largest 2 | . 2 2 . 2 Hottest 130 | . 110 110 . 130 Shots Fired 116 | . 46 61 . 9 Gun 116 | . 46 61 . 9 Cannon . | . . . . . Launcher . | . . . . . Special . | . . . . . Kinetic 3 | . 3 . . . Thermal 57 | . 18 30 . 9 Explosive . | . . . . . Electromagnetic 56 | . 25 31 . . Robot Hit Streak 9 | . 7 9 . 1 Robot Miss Streak 4 | . 4 4 . 4 Penetration Max . | . . . . . Secondary Targets 4 | . 3 1 . . Max Gunslinging Chain 1 | . 1 1 . . Shots Hit Robots 67 | . 28 37 . 2 Core Hits 39 | . 17 22 . . Critical Kills . | . . . . . Critical Parts Destroyed . | . . . . . Critical Strikes 5 | . 3 2 . . Burn 3 | . 1 2 . . Corrupt 2 | . 2 . . . Melee Attacks . | . . . . . Impact . | . . . . . Slashing . | . . . . . Piercing . | . . . . . Sneak Attacks . | . . . . . Combat Hostiles . | . . . . . Follow-up Attacks . | . . . . . Damage Inflicted 1138 | . 502 592 . 44 Guns 1092 | . 456 592 . 44 Cannons . | . . . . . Explosions 46 | . 46 . . . Melee . | . . . . . Ramming . | . . . . . Kinetic 25 | . 25 . . . Thermal 600 | . 211 345 . 44 Explosive . | . . . . . Electromagnetic 513 | . 266 247 . . Impact . | . . . . . Slashing . | . . . . . Piercing . | . . . . . Highest Corruption . | . . . . . Average Corruption . | . . . . . Corruption Purged . | . . . . . Corruption Blocked . | . . . . . Overload Shots . | . . . . . Overflow Damage . | . . . . . Projectiles . | . . . . . Explosions . | . . . . . Melee . | . . . . . Knockbacks . | . . . . . Impact . | . . . . . Kinetic . | . . . . . Secondary . | . . . . . Self-Inflicted Damage . | . . . . . Shots . | . . . . . Rammed . | . . . . . Targets Rammed . | . . . . . Kicked . | . . . . . Crushed . | . . . . . Highest Temperature 240 | . 194 240 . 33 Average Temperature 89 | . 83 93 . 15 Received Heat Transfer 294 | . 186 108 . . Effects 2 | . . 2 . . Interference 2 | . . 2 . . Siege Activations . | . . . . . Robots Corrupted . | . . . . . Combat Hostiles . | . . . . . Parts Fried . | . . . . . Impact Corruptions . | . . . . . Robots Melted . | . . . . . Combat Hostiles . | . . . . . Parts Melted 2 | . . 2 . . Heat Transferred 1604 | . 531 962 . 111 Parts Sabotaged . | . . . . . Parts Stolen . | . . . . . Parts Stripped . | . . . . . Power Chain Reactions 1 | . 1 . . . Alert | -11 -10 -10 -10 -9 ------- Run | Yrd Mat Min Exi Min Peak Influence 238 | . 174 238 . . Initial 36 | . . 36 . . Average 69 | . 41 97 . . Maximum Alert Level 1 | . 1 1 . . Low Security (%) 95 | 100 99 91 . 100 Level 1 4 | . . 8 . . Level 2 . | . . . . . Level 3 . | . . . . . Level 4 . | . . . . . Level 5 . | . . . . . High Security . | . . . . . Max Security . | . . . . . Squads Dispatched 6 | . 6 . . . Investigation 5 | . 5 . . . Extermination . | . . . . . Reinforcement 1 | . 1 . . . Assault . | . . . . . Garrison . | . . . . . Intercept . | . . . . . Searches Triggered . | . . . . . Construction Impeded . | . . . . . Haulers Reinforced . | . . . . . Active Scanning Responses . | . . . . . Cargo Convoy Interrupts . | . . . . . Stealth | -11 -10 -10 -10 -9 --------- Run | Yrd Mat Min Exi Min Distress Signals 2 | . 1 1 . . Communications Jammed . | . . . . . Distress Signals . | . . . . . Times Spotted 33 | . 17 14 . 2 Peak Tracking Total 8 | . 8 4 . 2 Tactical Retreats 2 | . 1 1 . . Traps | -11 -10 -10 -10 -9 ------- Run | Yrd Mat Min Exi Min Traps Triggered 1 | . 1 . . . Indirectly . | . . . . . Trap Hack Attempts . | . . . . . Triggered . | . . . . . Disarmed . | . . . . . Reprogrammed . | . . . . . Reused . | . . . . . Traps Extracted . | . . . . . Installed . | . . . . . Triggered . | . . . . . Machines | -11 -10 -10 -10 -9 ---------- Run | Yrd Mat Min Exi Min Machines Disabled . | . . . . . Max in Single Turn . | . . . . . Machines Repaired . | . . . . . Machines Dismantled . | . . . . . Machines Sabotaged . | . . . . . Overloaded Fab Kills . | . . . . . Hacking | -11 -10 -10 -10 -9 --------- Run | Yrd Mat Min Exi Min Machines Accessed 8 | . 6 1 1 . Terminals 7 | . 6 1 . . Fabricators . | . . . . . Repair Stations . | . . . . . Recycling Units . | . . . . . Scanalyzers . | . . . . . Garrison Access . | . . . . . Total Hacks 21 | . 17 3 1 . Successful 3 | . 1 1 1 . Failed 18 | . 16 2 . . Catastrophic 11 | . 9 2 . . Database Lockouts . | . . . . . Manual 15 | . 13 1 1 . Terminals 20 | . 17 3 . . Fabricators . | . . . . . Repair Stations . | . . . . . Recycling Units . | . . . . . Scanalyzers . | . . . . . Garrison Access . | . . . . . Terminal Hacks 3 | . 1 1 1 . Record 2 | . 1 1 . . Derelict Proto ID Bank 1 | . . . 1 . Fabricator Hacks . | . . . . . Repair Station Hacks . | . . . . . Recycling Unit Hacks . | . . . . . Scanalyzer . | . . . . . Garrison Access Hacks . | . . . . . Unauthorized Hacks . | . . . . . Terminals . | . . . . . Fabricators . | . . . . . Repair Stations . | . . . . . Recycling Units . | . . . . . Scanalyzers . | . . . . . Garrison Access . | . . . . . Data Cores Recovered 1 | . 1 . . . Used . | . . . . . Hacking Detections 7 | . 6 1 . . Full Trace Events 5 | . 4 1 . . Feedback Events . | . . . . . Feedback Blocked . | . . . . . Robot Schematics Acquired . | . . . . . Robots Built . | . . . . . Authchips . | . . . . . Time . | . . . . . Total Robot Build Rating . | . . . . . Part Schematics Acquired . | . . . . . Parts Built . | . . . . . Authchips . | . . . . . Time . | . . . . . Total Part Build Rating . | . . . . . Parts Repaired . | . . . . . Time . | . . . . . Parts Recycled . | . . . . . Recycled Matter . | . . . . . Retrieved Matter . | . . . . . Retrieved Components . | . . . . . Parts Scanalyzed . | . . . . . Part Schematics Acquired . | . . . . . Parts Damaged . | . . . . . Bothacking | -11 -10 -10 -10 -9 ------------ Run | Yrd Mat Min Exi Min Used RIF Installer . | . . . . . Robots Hacked . | . . . . . Non-combat . | . . . . . Combat . | . . . . . Robot Hacks Applied . | . . . . . Relay Couplers Released . | . . . . . Fabnet Peak Effective % . | . . . . . Robots Rewired . | . . . . . Allies Hacked . | . . . . . Hacks Repelled . | . . . . . Allies | -11 -10 -10 -10 -9 -------- Run | Yrd Mat Min Exi Min Total Allies 1 | . . 1 . . Largest Group 1 | . . 1 . . Highest-Rated Group 16 | . . 16 . . Highest-Rated Ally 16 | . . 16 . . Total Orders 2 | . . 2 . . FOLLOW 1 | . . 1 . . AID 1 | . . 1 . . Ally Attacks 6 | . . 6 . . Total Damage 57 | . . 57 . . Kills 1 | . . 1 . . Allies Corrupted . | . . . . . Allies Melted . | . . . . . Intel | -11 -10 -10 -10 -9 ------- Run | Yrd Mat Min Exi Min Robot Analysis Total . | . . . . . Derelict Logs Recovered 2 | . . 2 . . Drone Launches . | . . . . . Drone Recoveries . | . . . . . Exploration | -11 -10 -10 -10 -9 ------------- Run | Yrd Mat Min Exi Min Turns Passed 2732 | 63 697 1128 712 132 Spaces Moved 1999 | 34 449 831 589 96 Core 2 | 2 . . . . Treads 191 | 32 159 . . . Legs 1806 | . 290 831 589 96 Wheels . | . . . . . Hover . | . . . . . Flight . | . . . . . Fastest Speed 50 | 50 120 120 120 120 Average Speed 123 | 153 134 120 120 120 Slowest Speed 160 | 160 160 120 120 120 Overloaded Moves . | . . . . . Propulsion Burnouts . | . . . . . Robots Hopped . | . . . . . Cave-ins Triggered . | . . . . . Exploration Rate (%) 56 | 5 79 98 91 9 Regions Visited 4 Branch Regions 3 Pre-discovered Areas 1 | . . 1 . . Known Exits Taken . | . . . . . Unknown Exits Taken 4 | 1 1 1 1 . Scrap Searched 2 | . . 1 . 1 Spaces Dug . | . . . . . Terrain Destroyed 5 | . 5 . . . Melee . | . . . . . Projectile . | . . . . . AOE 5 | . 5 . . . Terrain Rammed . | . . . . . Walls Destroyed . | . . . . . Machines Disabled . | . . . . . Actions | -11 -10 -10 -10 -9 --------- Run | Yrd Mat Min Exi Min Total 2139 | 42 498 901 594 104 Wait 20 | . . 20 . . Move 1995 | 33 448 830 588 96 Hop . | . . . . . Pick Up 19 | 4 7 6 2 . Fast Attach 9 | 5 3 1 . . Attach 4 | . 2 1 1 . Detach 1 | . . 1 . . Swap 12 | . 4 6 1 1 Drop 16 | . 9 5 2 . Fire 63 | . 25 31 . 7 Melee . | . . . . . Ram . | . . . . . Kick . | . . . . . Crush . | . . . . . Escape Stasis . | . . . . . Rewire . | . . . . . Trap . | . . . . . Miscellaneous . | . . . . . Route ------- -11/Scrapyard -10/Materials (discovered 4 exits: [*Mat x3] / *Min) -10/Mines (discovered 3 exits: [*Mat x2] / *Exi) -10/Exiles -9/Mines History --------- Turn | Location | Event 29 | -11/Scrapyard | Discovered new exit (range 14) 64 | -11/Scrapyard | Entered Materials 276 | -10/Materials | Discovered new exit (range 5) 300 | -10/Materials | Build established: Mutant 441 | -10/Materials | Discovered new exit (range 16) 725 | -10/Materials | Discovered new exit (range 9) 743 | -10/Materials | Discovered new exit (range 16) 761 | -10/Materials | Entered Mines 772 | -10/Mines | Core integrity fell below 50% 993 | -10/Mines | Assisted by bots powering up and referring to "LRC-V3" 1036 | -10/Mines | Discovered new exit (range 5) 1079 | -10/Mines | Discovered new exit (range 3) 1101 | -10/Mines | Deemed a non-threat by the Exiles lab entrance 1101 | -10/Mines | Discovered new exit (range 5) 1243 | -10/Mines | Learned Materials stockpile data 1403 | -10/Mines | Excavation squad dispatched 1403 | -10/Mines | A large section of the Mines collapsed 1534 | -10/Mines | Build established: Scavenger-Mutant 1821 | -10/Mines | Core integrity fell below 20% 1889 | -10/Mines | Entered Exiles 1918 | -10/Exiles | Met 8R-AWN 1939 | -10/Exiles | Met EX-HEX 2000 | -10/Exiles | Met EX-DEC 2025 | -10/Exiles | Visited The Gauntlet 2218 | -10/Exiles | Met EX-BIN 2235 | -10/Exiles | Aligned with FarCom system 2236 | -10/Exiles | Given EX-Vault access code 2282 | -10/Exiles | Opened EX-Vault 2323 | -10/Exiles | Found Latent Energy Streamer 2381 | -10/Exiles | Warned to stay clear of 0b10 Research branches 2590 | -10/Exiles | Discovered new exit (range 11) 2601 | -10/Exiles | Left Exiles lab with Latent Energy Streamer 2601 | -10/Exiles | Entered Mines 2602 | -9/Mines | Assembled infested the area 2607 | -9/Mines | Assisted by a Guerilla fighting off Assembled 2733 | -9/Mines | Destroyed by as-22487 with Assembled Heavy Rifle Last Messages --------------- 02602_ ALERT: Infestation in the mines, dispatching Demolisher response squad. 02602_ T-07 Excavator is excavating. 02607_ A derelict emerges from the shadows: "You need to get out of here! I've been tracking a group of Assembled to figure out where they're coming from, and they're closing on this area, come on!" 02625_ Searching scrap... 02625_ Found Particle Gun. 02625_ Found Flight Unit. 02625_ Found 47 Matter. 02626_ Acquired 20 matter. 02627_ JO-U99(h): "I'll hold them off! Go on ahead or try to find another way!" 02631_ HV Slug penetrates Wall. 02633_ as-89936 destroyed. 02648_ T-07 Excavator is excavating. 02730_ Lgt. Nuclear Core destroyed. 02731_ Aluminum Leg destroyed. Map ----- +----------------------------------------------------+ | ????????????????????????????????????? | | ????????????????????????????????????? | | ????????????????????????????????????? | | ????????????????????????????????????? | | ????????????????????????????????????? | | ????????????????????????????????????? | | ????????????????????????????????????? | | ????????????????????????????????????? | | ????????????????????????????????????? | | ????????????????????????????????????? | | ????????????????????????????????????? | | ????????????????????????????????????? | | ????????????????????????????????????? | | ????????????????????????????????????? | | ???????????????????????####?????????? | | ???????????????????????# %??????????? | | ???????????????????????# %??????????? | | ???????????????????????#%"??????????? | | ???????????????????????#[#??????????? | | ???????????????????????#%#??????????? | | ???????????????????????#=#??????????? | | ?????????#####?????????# #??????????? | | ????????## ##????????# #??????????? | | ???????## ##???????# #??????????? | | ??????## ##??????# #??????????? | | ??????# @ ##?##### #??????????? | | ??????# #?# #??????????? | | ??????## #?# #####??????????? | | ???????## a### #??????????????? | | ????###?## #??????????????? | | ???## #### a #??????????????? | | ???# # # #####??????????????? | | ???# ##??????????????????? | | ???# #???????????????????? | | ???# # #???????????????????? | | ???######## ##???????????????????? | | ??????????######????????????????????? | | ????????????????????????????????????? | | ????????????????????????????????????? | | ????????????????????????????????????? | | ????????????????????????????????????? | | | | | | | | | | | | | | | | | | | +----------------------------------------------------+ Best States ------------- Heat Dissipation 39 Coolant Potential 50 Energy Generation 14 Energy Capacity 250 Matter Stores 300 Matter Capacity 300 Sight Range 16 Terrain Scan Density 10 Power Shielding 33 Evasion (%) 55 Recoil Reduction 2 Offensive Hacking 10 Item Schematics ----------------- None Robot Schematics ------------------ None Fabricated ------------ Nothing Alien Tech Used ----------------- None Achievements -------------- Party Time Challenges ------------ None Game ------ Seed CooledDiametricProtomatter Manual? 0 Play Time 00:35:53 Cumulative 8.4 hours Start 2024.08.28 @ 21:07:42 End 2024.08.28 @ 21:50:12 Sessions 1 Manual Loads 0 Difficulty Rogue Special Mode None Game No. 8 Rogue 8 Adventurer 0 Explorer 0 Win Type - Total 0 Types 0/0/0/0/0/0/0/0/0 Lore% 10 Gallery% 11 Achievement% 11 Wizard Run 0 Options --------- Layout 1 ASCII 0 Keyboard 0 Movement Numpad Keybinds 0 Fullscreen 2 Font 48/Tamsyn Map View 50x35 Zoom Use 0% Tactical HUD 1 Map Filters NONE Filters NONE Steam 1 RUN: c16fc66e-28e5-4845-99b3-17a59f6e2793